[Event "Early-Titled-Tuesday-Blitz-July-09-2024"]
[Site "Chess.com"]
[Date "2024.07.09"]
[Round "7"]
[White "Individoom"]
[Black "nrvisakh"]
[Result "0-1"]
[WhiteElo "2754"]
[BlackElo "2929"]
[TimeControl "180+1"]
[EndTime "9:21:25 PDT"]
[Termination "nrvisakh won on time"]

1. d4 {[%clk 0:02:59.5]} 1... d6 {[%clk 0:02:54.4]} 2. Nf3 {[%clk 0:02:58.7]}
2... Nf6 {[%clk 0:02:54.4]} 3. Bf4 {[%clk 0:02:57.2]} 3... g6 {[%clk 0:02:54.3]}
4. h3 {[%clk 0:02:55.2]} 4... Bg7 {[%clk 0:02:54.6]} 5. e3 {[%clk 0:02:55.4]}
5... O-O {[%clk 0:02:54.6]} 6. Be2 {[%clk 0:02:55.8]} 6... Nbd7 {[%clk 0:02:44]}
7. O-O {[%clk 0:02:54.9]} 7... Ne4 {[%clk 0:02:35.7]} 8. Bh2 {[%clk 0:02:46]}
8... e5 {[%clk 0:02:34.6]} 9. c4 {[%clk 0:02:38.3]} 9... Qe7 {[%clk 0:02:28.4]}
10. Nc3 {[%clk 0:02:34.1]} 10... Nxc3 {[%clk 0:02:28]} 11. bxc3 {[%clk 0:02:35]}
11... Re8 {[%clk 0:02:25.1]} 12. Rb1 {[%clk 0:02:32]} 12... Nf8 {[%clk
0:02:18.8]} 13. c5 {[%clk 0:02:26]} 13... b6 {[%clk 0:02:11.2]} 14. cxd6 {[%clk
0:02:24.9]} 14... cxd6 {[%clk 0:02:11.3]} 15. Re1 {[%clk 0:02:17.6]} 15... Bb7
{[%clk 0:02:07.6]} 16. Nd2 {[%clk 0:01:55]} 16... Rac8 {[%clk 0:02:05.8]} 17.
Rc1 {[%clk 0:01:53.5]} 17... Ne6 {[%clk 0:02:04.9]} 18. Bf3 {[%clk 0:01:52.9]}
18... Red8 {[%clk 0:01:59.7]} 19. Bxb7 {[%clk 0:01:47.8]} 19... Qxb7 {[%clk
0:01:59]} 20. Qe2 {[%clk 0:01:46.4]} 20... Rc7 {[%clk 0:01:55.1]} 21. Nf3 {[%clk
0:01:46]} 21... Qd5 {[%clk 0:01:38.2]} 22. Red1 {[%clk 0:01:05.6]} 22... Qa5
{[%clk 0:01:30.4]} 23. c4 {[%clk 0:00:54.6]} 23... Rdc8 {[%clk 0:01:27.5]} 24.
c5 {[%clk 0:00:40.7]} 24... bxc5 {[%clk 0:00:50.2]} 25. dxe5 {[%clk 0:00:40.2]}
25... dxe5 {[%clk 0:00:49.4]} 26. Nxe5 {[%clk 0:00:40.2]} 26... Rb7 {[%clk
0:00:47.7]} 27. Nc4 {[%clk 0:00:39]} 27... Qa6 {[%clk 0:00:46]} 28. Qf3 {[%clk
0:00:37.8]} 28... Qc6 {[%clk 0:00:41.3]} 29. Nd6 {[%clk 0:00:34.6]} 29... Qxf3
{[%clk 0:00:40.6]} 30. gxf3 {[%clk 0:00:34.5]} 30... Rbc7 {[%clk 0:00:37.5]} 31.
Nxc8 {[%clk 0:00:33.4]} 31... Rxc8 {[%clk 0:00:38.4]} 32. Rc4 {[%clk 0:00:33.3]}
32... Rc6 {[%clk 0:00:33.5]} 33. Kg2 {[%clk 0:00:32.8]} 33... Bf8 {[%clk
0:00:30.2]} 34. Rd2 {[%clk 0:00:31.5]} 34... h5 {[%clk 0:00:27.2]} 35. Rdc2
{[%clk 0:00:30.7]} 35... Ra6 {[%clk 0:00:26.2]} 36. f4 {[%clk 0:00:27.1]} 36...
f5 {[%clk 0:00:24.2]} 37. f3 {[%clk 0:00:21.9]} 37... Bd6 {[%clk 0:00:22.3]} 38.
Rd2 {[%clk 0:00:18.5]} 38... Kf7 {[%clk 0:00:21.6]} 39. Bg1 {[%clk 0:00:15.7]}
39... Ke7 {[%clk 0:00:19.4]} 40. Bf2 {[%clk 0:00:16]} 40... Ra3 {[%clk
0:00:19.3]} 41. Bh4+ {[%clk 0:00:15.8]} 41... Kd7 {[%clk 0:00:18.9]} 42. Kf2
{[%clk 0:00:16.1]} 42... Kc6 {[%clk 0:00:19.1]} 43. Bf6 {[%clk 0:00:15.7]} 43...
Nc7 {[%clk 0:00:16.3]} 44. Rc3 {[%clk 0:00:15.2]} 44... Rxc3 {[%clk 0:00:10.2]}
45. Bxc3 {[%clk 0:00:14.5]} 45... Nb5 {[%clk 0:00:09.7]} 46. Be5 {[%clk
0:00:14.4]} 46... Be7 {[%clk 0:00:08.7]} 47. Ke2 {[%clk 0:00:13.3]} 47... c4
{[%clk 0:00:09]} 48. a4 {[%clk 0:00:07.9]} 48... Nd6 {[%clk 0:00:08.1]} 49. Bxd6
{[%clk 0:00:07.3]} 49... Bxd6 {[%clk 0:00:08.1]} 50. Rb2 {[%clk 0:00:06.8]}
50... Bc7 {[%clk 0:00:05.4]} 51. Kd2 {[%clk 0:00:06.2]} 51... Ba5+ {[%clk
0:00:03.8]} 52. Kc2 {[%clk 0:00:06.5]} 52... Bb6 {[%clk 0:00:04.1]} 53. Kc3
{[%clk 0:00:06.3]} 53... Bxe3 {[%clk 0:00:03.9]} 54. Kxc4 {[%clk 0:00:06.6]}
54... Bxf4 {[%clk 0:00:04.3]} 55. Re2 {[%clk 0:00:05.2]} 55... Kd6 {[%clk
0:00:03.7]} 56. Re8 {[%clk 0:00:05.2]} 56... h4 {[%clk 0:00:03.2]} 57. Ra8
{[%clk 0:00:04.2]} 57... Be3 {[%clk 0:00:03.5]} 58. Re8 {[%clk 0:00:04.3]} 58...
Bf2 {[%clk 0:00:03.4]} 59. Rg8 {[%clk 0:00:03.8]} 59... Ke5 {[%clk 0:00:03.8]}
60. Rxg6 {[%clk 0:00:03.1]} 60... Kf4 {[%clk 0:00:04.4]} 61. Rf6 {[%clk
0:00:03.2]} 61... Kxf3 {[%clk 0:00:04.3]} 62. Rxf5+ {[%clk 0:00:03.2]} 62... Kg3
{[%clk 0:00:04.9]} 63. Rh5 {[%clk 0:00:01.2]} 63... Kxh3 {[%clk 0:00:03.9]} 64.
Kd3 {[%clk 0:00:01.5]} 64... Kg2 {[%clk 0:00:04.4]} 65. Rg5+ {[%clk 0:00:01]}
65... Bg3 {[%clk 0:00:04.6]} 0-1

[Event "Early-Titled-Tuesday-Blitz-July-09-2024"]
[Site "Chess.com"]
[Date "2024.07.09"]
[Round "7"]
[White "Losingexperience"]
[Black "suspiciumchess"]
[Result "0-1"]
[WhiteElo "2717"]
[BlackElo "2477"]
[TimeControl "180+1"]
[EndTime "9:21:31 PDT"]
[Termination "suspiciumchess won on time"]

1. e4 {[%clk 0:03:00.9]} 1... g6 {[%clk 0:03:00]} 2. d4 {[%clk 0:03:00.6]} 2...
d6 {[%clk 0:03:00.3]} 3. Nc3 {[%clk 0:03:01.3]} 3... c6 {[%clk 0:03:00.8]} 4.
Be3 {[%clk 0:03:01.4]} 4... Nf6 {[%clk 0:03:00.5]} 5. h3 {[%clk 0:03:00.7]} 5...
b5 {[%clk 0:03:00.5]} 6. Bd3 {[%clk 0:03:00.2]} 6... Nbd7 {[%clk 0:02:55.2]} 7.
Nf3 {[%clk 0:02:59.3]} 7... Bg7 {[%clk 0:02:52.6]} 8. O-O {[%clk 0:02:59.2]}
8... O-O {[%clk 0:02:52.4]} 9. Ne2 {[%clk 0:02:59.8]} 9... e5 {[%clk 0:02:50]}
10. c3 {[%clk 0:02:59.5]} 10... Bb7 {[%clk 0:02:44.7]} 11. Ng3 {[%clk
0:02:59.4]} 11... Qc7 {[%clk 0:02:39]} 12. Re1 {[%clk 0:02:57.7]} 12... a5
{[%clk 0:02:38.1]} 13. Qd2 {[%clk 0:02:57.9]} 13... Rfe8 {[%clk 0:02:36.5]} 14.
Bh6 {[%clk 0:02:57.7]} 14... Qb6 {[%clk 0:02:28.1]} 15. Qg5 {[%clk 0:02:30.1]}
15... Bxh6 {[%clk 0:02:12.5]} 16. Qxh6 {[%clk 0:02:29]} 16... Qd8 {[%clk
0:02:13]} 17. Rad1 {[%clk 0:02:24.1]} 17... Qe7 {[%clk 0:02:12.5]} 18. Qe3
{[%clk 0:02:07.7]} 18... b4 {[%clk 0:02:08.2]} 19. Bc4 {[%clk 0:02:00.1]} 19...
Ba6 {[%clk 0:02:04.7]} 20. Bb3 {[%clk 0:01:57.8]} 20... Bb5 {[%clk 0:01:56.4]}
21. a4 {[%clk 0:01:46.8]} 21... bxa3 {[%clk 0:01:48.3]} 22. bxa3 {[%clk
0:01:47.7]} 22... Nb6 {[%clk 0:01:44.2]} 23. dxe5 {[%clk 0:01:45.4]} 23... Nfd7
{[%clk 0:01:16.3]} 24. exd6 {[%clk 0:01:42.3]} 24... Qf6 {[%clk 0:01:14.9]} 25.
e5 {[%clk 0:01:37.3]} 25... Qg7 {[%clk 0:01:14.1]} 26. Ng5 {[%clk 0:01:28.3]}
26... Bc4 {[%clk 0:01:09.3]} 27. Bxc4 {[%clk 0:01:07.4]} 27... Nxc4 {[%clk
0:01:08.4]} 28. Qd4 {[%clk 0:01:06.1]} 28... Ncxe5 {[%clk 0:01:02.6]} 29. f4
{[%clk 0:01:04.4]} 29... c5 {[%clk 0:00:49.5]} 30. Qd5 {[%clk 0:00:58.4]} 30...
h6 {[%clk 0:00:49.5]} 31. N5e4 {[%clk 0:00:54.2]} 31... Nb6 {[%clk 0:00:49.2]}
32. Qxc5 {[%clk 0:00:42.2]} 32... Ned7 {[%clk 0:00:48.6]} 33. Qb5 {[%clk
0:00:39.5]} 33... f5 {[%clk 0:00:38.9]} 34. Nc5 {[%clk 0:00:35.1]} 34... Rxe1+
{[%clk 0:00:37.6]} 35. Rxe1 {[%clk 0:00:36]} 35... Qxc3 {[%clk 0:00:38.1]} 36.
Nxd7 {[%clk 0:00:28.7]} 36... Qxe1+ {[%clk 0:00:37.9]} 37. Kh2 {[%clk
0:00:29.1]} 37... Nxd7 {[%clk 0:00:23.6]} 38. Qd5+ {[%clk 0:00:29.1]} 38... Kg7
{[%clk 0:00:21.8]} 39. Qxa8 {[%clk 0:00:29.6]} 39... Qe6 {[%clk 0:00:21.4]} 40.
Qa6 {[%clk 0:00:19.1]} 40... g5 {[%clk 0:00:18.3]} 41. Qd3 {[%clk 0:00:12.9]}
41... Kg6 {[%clk 0:00:16]} 42. Ne2 {[%clk 0:00:07.8]} 42... Nc5 {[%clk
0:00:15.5]} 43. Qd4 {[%clk 0:00:06.2]} 43... Nb3 {[%clk 0:00:08.1]} 44. Qb2
{[%clk 0:00:04.8]} 44... Nc5 {[%clk 0:00:04.8]} 45. fxg5 {[%clk 0:00:03.3]}
45... hxg5 {[%clk 0:00:04.7]} 46. Ng3 {[%clk 0:00:02.8]} 46... Qxd6 {[%clk
0:00:04.5]} 47. Qh8 {[%clk 0:00:03.2]} 47... Ne4 {[%clk 0:00:04.4]} 48. Qh5+
{[%clk 0:00:03.4]} 48... Kf6 {[%clk 0:00:03.7]} 49. Qh6+ {[%clk 0:00:03.8]}
49... Ke7 {[%clk 0:00:03.5]} 50. Qxd6+ {[%clk 0:00:04]} 50... Nxd6 {[%clk
0:00:03.3]} 51. Ne2 {[%clk 0:00:04.4]} 51... Nc4 {[%clk 0:00:03.6]} 52. Kg3
{[%clk 0:00:05.3]} 52... Nxa3 {[%clk 0:00:04]} 53. Nd4 {[%clk 0:00:06]} 53...
Kf6 {[%clk 0:00:03.8]} 54. Nb3 {[%clk 0:00:05.5]} 54... Nc4 {[%clk 0:00:04.2]}
55. Nc5 {[%clk 0:00:05.8]} 55... Nb2 {[%clk 0:00:03.8]} 56. Kf3 {[%clk 0:00:06]}
56... a4 {[%clk 0:00:03.8]} 57. Ke3 {[%clk 0:00:06.5]} 57... a3 {[%clk
0:00:04.2]} 58. Kd4 {[%clk 0:00:07.1]} 58... a2 {[%clk 0:00:04.1]} 59. Nb3
{[%clk 0:00:07.3]} 59... Nd1 {[%clk 0:00:03.6]} 60. Kd3 {[%clk 0:00:07.1]} 60...
Ke5 {[%clk 0:00:03.5]} 61. Kd2 {[%clk 0:00:07.5]} 61... Nf2 {[%clk 0:00:04.2]}
62. Kc2 {[%clk 0:00:07]} 62... Kf4 {[%clk 0:00:04.6]} 63. Kb2 {[%clk 0:00:06.4]}
63... Kg3 {[%clk 0:00:05.2]} 64. Nd4 {[%clk 0:00:06.9]} 64... Kxg2 {[%clk
0:00:05.3]} 65. Ne6 {[%clk 0:00:07.5]} 65... Nxh3 {[%clk 0:00:05]} 66. Nxg5
{[%clk 0:00:08]} 66... Nxg5 {[%clk 0:00:05.3]} 0-1

[Event "Early-Titled-Tuesday-Blitz-July-09-2024"]
[Site "Chess.com"]
[Date "2024.07.09"]
[Round "7"]
[White "HypeMan111"]
[Black "adreyd"]
[Result "1/2-1/2"]
[WhiteElo "2298"]
[BlackElo "2413"]
[TimeControl "180+1"]
[EndTime "9:21:45 PDT"]
[Termination "Game drawn - insufficient material"]

1. e4 {[%clk 0:02:54.8]} 1... b6 {[%clk 0:02:59.7]} 2. d4 {[%clk 0:02:54.4]}
2... Bb7 {[%clk 0:02:59.5]} 3. Bd3 {[%clk 0:02:55.1]} 3... e6 {[%clk 0:02:59.3]}
4. Nf3 {[%clk 0:02:53.8]} 4... c5 {[%clk 0:02:58.8]} 5. c3 {[%clk 0:02:48.6]}
5... Nf6 {[%clk 0:02:58.2]} 6. Qe2 {[%clk 0:02:42.9]} 6... Be7 {[%clk 0:02:48]}
7. O-O {[%clk 0:02:28.8]} 7... Nc6 {[%clk 0:02:38.1]} 8. Bf4 {[%clk 0:01:57.9]}
8... d5 {[%clk 0:02:32]} 9. e5 {[%clk 0:01:54.6]} 9... Nd7 {[%clk 0:02:31.8]}
10. Nbd2 {[%clk 0:01:40.4]} 10... g5 {[%clk 0:02:30.5]} 11. Be3 {[%clk
0:01:36.3]} 11... h5 {[%clk 0:02:24.9]} 12. Rac1 {[%clk 0:01:25.7]} 12... g4
{[%clk 0:01:54.7]} 13. Ne1 {[%clk 0:01:25.3]} 13... c4 {[%clk 0:01:36.8]} 14.
Bb1 {[%clk 0:01:23.7]} 14... Qc7 {[%clk 0:01:22.2]} 15. f3 {[%clk 0:01:19.5]}
15... f5 {[%clk 0:01:21]} 16. exf6 {[%clk 0:01:10.5]} 16... Nxf6 {[%clk
0:01:20.6]} 17. Bg5 {[%clk 0:00:56.7]} 17... Kd7 {[%clk 0:00:58.7]} 18. Bxf6
{[%clk 0:00:53]} 18... Bxf6 {[%clk 0:00:57.1]} 19. fxg4 {[%clk 0:00:53]} 19...
hxg4 {[%clk 0:00:37.6]} 20. g3 {[%clk 0:00:18.6]} 20... Bg5 {[%clk 0:00:32.6]}
21. Rd1 {[%clk 0:00:08]} 21... Rag8 {[%clk 0:00:20.8]} 22. Ng2 {[%clk
0:00:07.5]} 22... Rxh2 {[%clk 0:00:06.1]} 23. Kxh2 {[%clk 0:00:07.2]} 23... Rh8+
{[%clk 0:00:06.7]} 24. Kg1 {[%clk 0:00:07.7]} 24... Qxg3 {[%clk 0:00:07.3]} 25.
Nf3 {[%clk 0:00:04.3]} 25... gxf3 {[%clk 0:00:02.8]} 26. Rxf3 {[%clk 0:00:05.2]}
26... Qh2+ {[%clk 0:00:03]} 27. Kf2 {[%clk 0:00:05.6]} 27... Bh4+ {[%clk
0:00:03.1]} 28. Ke3 {[%clk 0:00:05.7]} 28... Bg5+ {[%clk 0:00:02.3]} 29. Nf4
{[%clk 0:00:04]} 29... Qxe2+ {[%clk 0:00:01.1]} 30. Kxe2 {[%clk 0:00:03.7]}
30... Rh2+ {[%clk 0:00:02]} 31. Ke3 {[%clk 0:00:03]} 31... Rxb2 {[%clk
0:00:02.3]} 32. Rg1 {[%clk 0:00:03]} 32... Bxf4+ {[%clk 0:00:01.7]} 33. Rxf4
{[%clk 0:00:03]} 33... Ne7 {[%clk 0:00:02.4]} 34. Rg7 {[%clk 0:00:02.2]} 34...
Rxb1 {[%clk 0:00:02.6]} 35. Rff7 {[%clk 0:00:02.2]} 35... Rb2 {[%clk 0:00:02.3]}
36. Rxe7+ {[%clk 0:00:02.2]} 36... Kc6 {[%clk 0:00:02.5]} 37. Rxb7 {[%clk
0:00:03.1]} 37... Rxa2 {[%clk 0:00:03.1]} 38. Rgc7+ {[%clk 0:00:02.6]} 38... Kb5
{[%clk 0:00:01.8]} 39. Rxa7 {[%clk 0:00:02.4]} 39... Rc2 {[%clk 0:00:02.4]} 40.
Ra3 {[%clk 0:00:01.6]} 40... Rb2 {[%clk 0:00:01.5]} 41. Re7 {[%clk 0:00:02.5]}
41... Rb3 {[%clk 0:00:01.9]} 42. Rxb3+ {[%clk 0:00:02.5]} 42... cxb3 {[%clk
0:00:02.8]} 43. Kd2 {[%clk 0:00:03.1]} 43... Kc4 {[%clk 0:00:02.4]} 44. Rb7
{[%clk 0:00:03.3]} 44... Kb5 {[%clk 0:00:02.4]} 45. Kc1 {[%clk 0:00:03.2]} 45...
Kc6 {[%clk 0:00:02.6]} 46. Kb2 {[%clk 0:00:04.1]} 46... Kxb7 {[%clk 0:00:02.8]}
47. Kxb3 {[%clk 0:00:05]} 47... Kc6 {[%clk 0:00:03.1]} 48. Kb4 {[%clk 0:00:04]}
48... Kc7 {[%clk 0:00:03.4]} 49. Ka4 {[%clk 0:00:02.8]} 49... Kb7 {[%clk
0:00:03.7]} 50. Kb5 {[%clk 0:00:03.1]} 50... Kc7 {[%clk 0:00:03.2]} 51. Kb4
{[%clk 0:00:02.5]} 51... Kc6 {[%clk 0:00:03.6]} 52. Ka4 {[%clk 0:00:03]} 52...
Kd7 {[%clk 0:00:02.8]} 53. Kb5 {[%clk 0:00:03]} 53... Kc7 {[%clk 0:00:03.3]} 54.
Kb4 {[%clk 0:00:03.3]} 54... Kb8 {[%clk 0:00:03.7]} 55. Kb5 {[%clk 0:00:03.1]}
55... Kb7 {[%clk 0:00:04.2]} 56. Kb4 {[%clk 0:00:04]} 56... Ka6 {[%clk
0:00:04.6]} 57. Ka4 {[%clk 0:00:03.8]} 57... b5+ {[%clk 0:00:05]} 58. Kb3 {[%clk
0:00:04.2]} 58... Kb6 {[%clk 0:00:05.6]} 59. Kb4 {[%clk 0:00:04.6]} 59... Ka6
{[%clk 0:00:03.8]} 60. Kc5 {[%clk 0:00:04.4]} 60... Ka5 {[%clk 0:00:04.4]} 61.
Kd6 {[%clk 0:00:04.7]} 61... Ka4 {[%clk 0:00:02.6]} 62. Kxe6 {[%clk 0:00:04.9]}
62... Kb3 {[%clk 0:00:03.2]} 63. Kxd5 {[%clk 0:00:02.1]} 63... Kxc3 {[%clk
0:00:03.6]} 64. Kc5 {[%clk 0:00:03]} 64... b4 {[%clk 0:00:04.4]} 65. d5 {[%clk
0:00:03.9]} 65... b3 {[%clk 0:00:05]} 66. d6 {[%clk 0:00:04.8]} 66... b2 {[%clk
0:00:05.9]} 67. d7 {[%clk 0:00:05.2]} 67... b1=Q {[%clk 0:00:06.8]} 68. d8=Q
{[%clk 0:00:05.9]} 68... Qb4+ {[%clk 0:00:07.1]} 69. Kc6 {[%clk 0:00:06.3]}
69... Qa4+ {[%clk 0:00:07.5]} 70. Kc7 {[%clk 0:00:06.6]} 70... Qa5+ {[%clk
0:00:07.4]} 71. Kd7 {[%clk 0:00:06.9]} 71... Qd5+ {[%clk 0:00:07.5]} 72. Ke7
{[%clk 0:00:06.8]} 72... Qe5+ {[%clk 0:00:07.9]} 73. Kd7 {[%clk 0:00:07.7]}
73... Qd5+ {[%clk 0:00:08.2]} 74. Ke7 {[%clk 0:00:08.2]} 74... Qb7+ {[%clk
0:00:08.2]} 75. Qd7 {[%clk 0:00:08]} 75... Qe4+ {[%clk 0:00:08.8]} 76. Kf8
{[%clk 0:00:07.8]} 76... Qf4+ {[%clk 0:00:07.7]} 77. Kg8 {[%clk 0:00:08.1]}
77... Qg5+ {[%clk 0:00:07.7]} 78. Kh7 {[%clk 0:00:08.4]} 78... Qh5+ {[%clk
0:00:07.9]} 79. Kg7 {[%clk 0:00:08.4]} 79... Qg5+ {[%clk 0:00:08.1]} 80. Kf7
{[%clk 0:00:08.4]} 80... Qf4+ {[%clk 0:00:08.2]} 81. Ke7 {[%clk 0:00:08.5]}
81... Qe5+ {[%clk 0:00:08.4]} 82. Qe6 {[%clk 0:00:08.6]} 82... Qc7+ {[%clk
0:00:07.9]} 83. Kf6 {[%clk 0:00:08.7]} 83... Qf4+ {[%clk 0:00:07.7]} 84. Kg6
{[%clk 0:00:07.3]} 84... Qg3+ {[%clk 0:00:07.2]} 85. Kf7 {[%clk 0:00:07]} 85...
Qf4+ {[%clk 0:00:06.9]} 86. Qf6+ {[%clk 0:00:07.8]} 86... Qxf6+ {[%clk
0:00:06.5]} 87. Kxf6 {[%clk 0:00:08.7]} 1/2-1/2

[Event "Early-Titled-Tuesday-Blitz-July-09-2024"]
[Site "Chess.com"]
[Date "2024.07.09"]
[Round "7"]
[White "YairParkhov"]
[Black "ShahMatKanal"]
[Result "1/2-1/2"]
[WhiteElo "2759"]
[BlackElo "2567"]
[TimeControl "180+1"]
[EndTime "9:21:58 PDT"]
[Termination "Game drawn - insufficient material"]

1. d4 {[%clk 0:02:11.2]} 1... d5 {[%clk 0:02:58.4]} 2. c4 {[%clk 0:02:11.5]}
2... e6 {[%clk 0:02:58]} 3. Nf3 {[%clk 0:02:11.9]} 3... Nf6 {[%clk 0:02:58.1]}
4. g3 {[%clk 0:02:11.9]} 4... Be7 {[%clk 0:02:57.7]} 5. Bg2 {[%clk 0:02:11.8]}
5... O-O {[%clk 0:02:58.3]} 6. Qc2 {[%clk 0:02:12.3]} 6... c6 {[%clk 0:02:58.2]}
7. Nbd2 {[%clk 0:02:07.4]} 7... Nbd7 {[%clk 0:02:57]} 8. e4 {[%clk 0:02:07.3]}
8... b6 {[%clk 0:02:56.3]} 9. e5 {[%clk 0:01:59.4]} 9... Ne8 {[%clk 0:02:54.9]}
10. h4 {[%clk 0:01:55]} 10... h6 {[%clk 0:02:50.2]} 11. cxd5 {[%clk 0:01:51.2]}
11... cxd5 {[%clk 0:02:49.8]} 12. O-O {[%clk 0:01:50.7]} 12... Ba6 {[%clk
0:02:46.9]} 13. Re1 {[%clk 0:01:41]} 13... Rc8 {[%clk 0:02:46.4]} 14. Qb3 {[%clk
0:01:36.4]} 14... Qc7 {[%clk 0:02:40.8]} 15. Nf1 {[%clk 0:01:34.3]} 15... Qc2
{[%clk 0:02:36.5]} 16. Qxc2 {[%clk 0:01:28]} 16... Rxc2 {[%clk 0:02:37.4]} 17.
Ne3 {[%clk 0:01:28.6]} 17... Rc6 {[%clk 0:02:29.2]} 18. Bd2 {[%clk 0:01:28.9]}
18... Nc7 {[%clk 0:02:08]} 19. Rac1 {[%clk 0:01:27.8]} 19... Rxc1 {[%clk
0:02:07.9]} 20. Rxc1 {[%clk 0:01:28.7]} 20... Rc8 {[%clk 0:02:07.1]} 21. Bf1
{[%clk 0:01:23.8]} 21... Bb7 {[%clk 0:02:02.7]} 22. h5 {[%clk 0:01:19.1]} 22...
Ne8 {[%clk 0:01:57.7]} 23. Rxc8 {[%clk 0:01:18.8]} 23... Bxc8 {[%clk 0:01:58.6]}
24. Ne1 {[%clk 0:01:09]} 24... Nc7 {[%clk 0:01:56]} 25. N1c2 {[%clk 0:01:06.6]}
25... Ba6 {[%clk 0:01:54]} 26. Bb4 {[%clk 0:01:06.7]} 26... Bxb4 {[%clk
0:01:51.4]} 27. Nxb4 {[%clk 0:01:06.5]} 27... Bxf1 {[%clk 0:01:51.9]} 28. Kxf1
{[%clk 0:01:07.4]} 28... Kf8 {[%clk 0:01:46.3]} 29. Nc6 {[%clk 0:00:59.8]} 29...
a6 {[%clk 0:01:43.9]} 30. f4 {[%clk 0:00:56.2]} 30... Ke8 {[%clk 0:01:37.4]} 31.
g4 {[%clk 0:00:55.7]} 31... a5 {[%clk 0:01:24.6]} 32. g5 {[%clk 0:00:52.7]}
32... Kf8 {[%clk 0:01:11.6]} 33. Ke2 {[%clk 0:00:49.3]} 33... Na6 {[%clk
0:01:08.8]} 34. a3 {[%clk 0:00:47]} 34... Ndb8 {[%clk 0:01:05.6]} 35. Na7 {[%clk
0:00:42.9]} 35... Nc7 {[%clk 0:00:41.8]} 36. Ng4 {[%clk 0:00:36.1]} 36... hxg5
{[%clk 0:00:41.5]} 37. fxg5 {[%clk 0:00:36.4]} 37... Nd7 {[%clk 0:00:35.5]} 38.
Kd3 {[%clk 0:00:26.6]} 38... Kg8 {[%clk 0:00:34.2]} 39. Nc8 {[%clk 0:00:22.6]}
39... b5 {[%clk 0:00:32.3]} 40. Nd6 {[%clk 0:00:18.4]} 40... Nf8 {[%clk
0:00:32.1]} 41. h6 {[%clk 0:00:15.4]} 41... Nh7 {[%clk 0:00:23.8]} 42. hxg7
{[%clk 0:00:07.3]} 42... Kxg7 {[%clk 0:00:24.7]} 43. Nf6 {[%clk 0:00:07.3]}
43... Nxg5 {[%clk 0:00:23.6]} 44. Nfe8+ {[%clk 0:00:06]} 44... Nxe8 {[%clk
0:00:24.1]} 45. Nxe8+ {[%clk 0:00:06.9]} 45... Kg6 {[%clk 0:00:24.4]} 46. b4
{[%clk 0:00:06.8]} 46... axb4 {[%clk 0:00:23.7]} 47. axb4 {[%clk 0:00:07.7]}
47... Nf3 {[%clk 0:00:18.9]} 48. Nd6 {[%clk 0:00:07.1]} 48... f6 {[%clk
0:00:18.9]} 49. exf6 {[%clk 0:00:06.7]} 49... Kxf6 {[%clk 0:00:19.8]} 50. Nxb5
{[%clk 0:00:07.2]} 50... e5 {[%clk 0:00:17.9]} 51. dxe5+ {[%clk 0:00:07.1]}
51... Kxe5 {[%clk 0:00:17.2]} 52. Nc7 {[%clk 0:00:06.4]} 52... Nd4 {[%clk
0:00:13.9]} 53. Na6 {[%clk 0:00:05.4]} 53... Nb5 {[%clk 0:00:13.5]} 54. Nc5
{[%clk 0:00:05.5]} 54... Kd6 {[%clk 0:00:10]} 55. Nb3 {[%clk 0:00:05.8]} 55...
Kc6 {[%clk 0:00:09.9]} 56. Na5+ {[%clk 0:00:06.1]} 56... Kb6 {[%clk 0:00:09.8]}
57. Nb3 {[%clk 0:00:06.8]} 57... Kc6 {[%clk 0:00:10.1]} 58. Nd2 {[%clk
0:00:06.7]} 58... Kb6 {[%clk 0:00:10.3]} 59. Nf3 {[%clk 0:00:07.2]} 59... Nc7
{[%clk 0:00:09.8]} 60. Nd4 {[%clk 0:00:07.3]} 60... Nb5 {[%clk 0:00:10.2]} 61.
Nf5 {[%clk 0:00:07.5]} 61... Nc7 {[%clk 0:00:10.1]} 62. Nd6 {[%clk 0:00:08.1]}
62... Nb5 {[%clk 0:00:09.7]} 63. Nc8+ {[%clk 0:00:08.6]} 63... Kc6 {[%clk
0:00:09.7]} 64. Ne7+ {[%clk 0:00:09.2]} 64... Kd6 {[%clk 0:00:09.6]} 65. Nf5+
{[%clk 0:00:09.7]} 65... Kc6 {[%clk 0:00:09.6]} 66. Kc2 {[%clk 0:00:10.1]} 66...
d4 {[%clk 0:00:07.9]} 67. Kd3 {[%clk 0:00:09.8]} 67... Kd5 {[%clk 0:00:08]} 68.
Ne7+ {[%clk 0:00:10.3]} 68... Kd6 {[%clk 0:00:07.1]} 69. Nc8+ {[%clk 0:00:10.4]}
69... Kd5 {[%clk 0:00:06.8]} 70. Nb6+ {[%clk 0:00:10.6]} 70... Kc6 {[%clk
0:00:06.9]} 71. Na4 {[%clk 0:00:10.6]} 71... Kd5 {[%clk 0:00:06.9]} 72. Nb6+
{[%clk 0:00:10.9]} 72... Kc6 {[%clk 0:00:07]} 73. Nc4 {[%clk 0:00:11.6]} 73...
Kd5 {[%clk 0:00:07.1]} 74. Na5 {[%clk 0:00:11.9]} 74... Ke5 {[%clk 0:00:06.7]}
75. Nb3 {[%clk 0:00:11.9]} 75... Kd5 {[%clk 0:00:07]} 76. Na5 {[%clk 0:00:12.3]}
76... Ke5 {[%clk 0:00:06.8]} 77. Kc4 {[%clk 0:00:12.9]} 77... Nd6+ {[%clk
0:00:06.2]} 78. Kd3 {[%clk 0:00:13.2]} 78... Kd5 {[%clk 0:00:05.1]} 79. Nb3
{[%clk 0:00:12.9]} 79... Nb5 {[%clk 0:00:05.4]} 80. Nd2 {[%clk 0:00:12.3]} 80...
Nc7 {[%clk 0:00:04.6]} 81. Nf3 {[%clk 0:00:11]} 81... Na6 {[%clk 0:00:04.4]} 82.
b5 {[%clk 0:00:10.4]} 82... Nb4+ {[%clk 0:00:04.2]} 83. Kd2 {[%clk 0:00:10.5]}
83... Kc5 {[%clk 0:00:04.5]} 84. Nxd4 {[%clk 0:00:10.9]} 84... Kxd4 {[%clk
0:00:04.1]} 85. b6 {[%clk 0:00:11.5]} 85... Nc6 {[%clk 0:00:04]} 86. b7 {[%clk
0:00:12.1]} 86... Kc5 {[%clk 0:00:04.3]} 87. Kc3 {[%clk 0:00:08.4]} 87... Kb6
{[%clk 0:00:04.5]} 88. b8=Q+ {[%clk 0:00:08.3]} 88... Nxb8 {[%clk 0:00:03.8]}
1/2-1/2

[Event "Early-Titled-Tuesday-Blitz-July-09-2024"]
[Site "Chess.com"]
[Date "2024.07.09"]
[Round "8"]
[White "Pitomina"]
[Black "YairParkhov"]
[Result "1-0"]
[WhiteElo "2607"]
[BlackElo "2748"]
[TimeControl "180+1"]
[EndTime "9:23:21 PDT"]
[Termination "Pitomina won by checkmate"]

1. e4 {[%clk 0:02:58.9]} 1... c5 {[%clk 0:03:00]} 2. Nf3 {[%clk 0:02:58.5]} 2...
Nf6 {[%clk 0:03:00.6]} 3. e5 {[%clk 0:02:58.3]} 3... Nd5 {[%clk 0:03:01.2]} 4.
Nc3 {[%clk 0:02:57.6]} 4... e6 {[%clk 0:03:01.8]} 5. Nxd5 {[%clk 0:02:56.6]}
5... exd5 {[%clk 0:03:02.7]} 6. d4 {[%clk 0:02:57.1]} 6... Nc6 {[%clk
0:03:03.4]} 7. dxc5 {[%clk 0:02:56.6]} 7... Bxc5 {[%clk 0:03:04.3]} 8. Qxd5
{[%clk 0:02:56.3]} 8... d6 {[%clk 0:03:04.8]} 9. exd6 {[%clk 0:02:56.5]} 9...
Qb6 {[%clk 0:03:02.5]} 10. Qe4+ {[%clk 0:02:55.9]} 10... Be6 {[%clk 0:02:59.9]}
11. Qh4 {[%clk 0:02:55.9]} 11... Nb4 {[%clk 0:02:37.4]} 12. Qe7# {[%clk
0:02:54.5]} 1-0